fUST/lending_fUST_20250627
["ID","MTS","AMOUNT","RATE_DAILY","PERIOD"]
[368022033,1750996244922,-460.0,0.00019452,2]
[368022034,1750996244931,-460.0,0.00019452,2]
[368022035,1750996244941,-460.0,0.00019452,2]
[368022036,1750996244950,-804.9,0.00019452,2]
[368022037,1750996244960,-460.0,0.00019452,2]
[368022038,1750996244969,-1327.84,0.00019452,2]
[368022039,1750996244979,-460.0,0.00019452,2]
[368022040,1750996244988,-460.0,0.00019452,2]
[368022041,1750996245001,-460.0,0.00019452,2]
[368022042,1750996245010,-438.79592892,0.00019452,2]
[368022043,1750996245019,-460.0,0.00019452,2]
[368022044,1750996245029,-460.0,0.00019452,2]
[368022045,1750996245038,-4263.33,0.00019452,2]
[368022046,1750996245047,-460.0,0.00019452,2]
[368022047,1750996245056,-460.0,0.00019452,2]
[368022048,1750996245067,-460.0,0.00019452,2]
[368022049,1750996245076,-460.0,0.00019452,2]
[368022050,1750996245086,-460.0,0.00019452,2]
[368022051,1750996245095,-460.0,0.00019452,2]
[368022052,1750996245105,-460.0,0.00019452,2]
[368022053,1750996245114,-401.88057392,0.00019452,2]
[368022054,1750996245124,-460.0,0.00019452,2]
[368022055,1750996245133,-460.0,0.00019452,2]
[368022056,1750996245143,-2077.85,0.00019452,2]
[368022057,1750996245152,-460.0,0.00019452,2]
[368022058,1750996245162,-461.56411624,0.00019452,2]
[368022059,1750996245171,-441.22975194,0.00019452,2]
[368022060,1750996245181,-460.0,0.00019452,2]
[368022061,1750996245190,-460.0,0.00019452,2]
[368022062,1750996245199,-321.55554434,0.00019452,2]
[368022063,1750996245209,-460.0,0.00019452,2]
[368022064,1750996245219,-460.0,0.00019452,2]
[368022065,1750996245228,-460.0,0.00019452,2]
[368022066,1750996245237,-460.0,0.00019452,2]
[368022067,1750996245247,-460.0,0.00019452,2]
[368022068,1750996245256,-460.0,0.00019452,2]
[368022069,1750996245266,-460.0,0.00019452,2]
[368022070,1750996245275,-874.94,0.00019452,2]
[368022071,1750996245285,-460.0,0.00019452,2]
[368022072,1750996245294,-460.0,0.00019452,2]
[368022073,1750996245304,-460.0,0.00019452,2]
[368022074,1750996245314,-689.65,0.00019452,2]
[368022075,1750996245323,-460.0,0.00019452,2]
[368022076,1750996245333,-2347.23,0.00019452,2]
[368022077,1750996245342,-437.54907532,0.00019452,2]
[368022078,1750996245352,-460.0,0.00019452,2]
[368022079,1750996245362,-460.0,0.00019452,2]
[368022080,1750996245371,-410.0,0.00019452,2]
[368022081,1750996245380,-460.0,0.00019452,2]
[368022082,1750996245390,-460.0,0.00019452,2]
[368022083,1750996245399,-455.3119273,0.00019452,2]
[368022084,1750996245408,-585.93,0.00019452,2]
[368022085,1750996245417,-333.0,0.00019475,2]
[368022086,1750996245426,-1651.92851148,0.00019521,2]
[368022087,1750996245435,-703.81394276,0.00019557,2]
[368022088,1750996245445,-517.43529713,0.00019563,2]
[368022089,1750996245454,-500.0,0.00019563,2]
[368022090,1750996245463,-500.02243192,0.00019626,2]
[368022091,1750996245472,-500.0,0.00019641,2]
[368022092,1750996245481,-366.0585355,0.00019662,2]
[368022093,1750996245491,-366.0585355,0.00019662,2]
[368022094,1750996245500,-366.0585355,0.00019662,2]
[368022095,1750996245509,-366.0585355,0.00019662,2]
[368022096,1750996245518,-365.0441419,0.00019662,2]
[368022097,1750996245527,-731.8916502,0.00019662,2]
[368022098,1750996245536,-1000.0,0.00019721,2]
[368022099,1750996245546,-160283.36588,0.00019725,2]
[368022100,1750996245555,-6486.21170675,0.00019726,2]
[368022101,1750996245564,-6560.74118846,0.00019726,2]
[368022102,1750996245574,-460.0,0.00019726,2]
[368022103,1750996245583,-460.0,0.00019726,2]
[368022104,1750996245592,-460.0,0.00019726,2]
[368022105,1750996245601,-460.0,0.00019726,2]
[368022106,1750996245611,-460.0,0.00019726,2]
[368022107,1750996245620,-460.0,0.00019726,2]
[368022108,1750996245630,-419.03673368,0.00019726,2]
[368022109,1750996245639,-460.0,0.00019726,2]
[368022110,1750996245648,-460.0,0.00019726,2]
[368022111,1750996245657,-460.0,0.00019726,2]
[368022112,1750996245667,-460.0,0.00019726,2]
[368022113,1750996245675,-460.0,0.00019726,2]
[368022114,1750996245685,-460.0,0.00019726,2]
[368022115,1750996245717,-460.0,0.00019726,2]
[368022116,1750996245726,-500.0,0.00019726,2]
[368022117,1750996245736,-583.22,0.00019726,2]
[368022118,1750996245745,-460.0,0.00019726,2]
[368022119,1750996245753,-532.07,0.00019726,2]
[368022120,1750996245762,-460.0,0.00019726,2]
[368022121,1750996245772,-460.0,0.00019726,2]
[368022122,1750996245783,-460.0,0.00019726,2]
[368022123,1750996245793,-460.0,0.00019726,2]
[368022124,1750996245802,-460.0,0.00019726,2]
[368022125,1750996245810,-460.0,0.00019726,2]
[368022126,1750996245819,-460.0,0.00019726,2]
[368022127,1750996245829,-460.0,0.00019726,2]
[368022128,1750996245838,-460.0,0.00019726,2]
[368022129,1750996245847,-460.0,0.00019726,2]
[368022130,1750996245856,-544.42,0.00019726,2]
[368022131,1750996245865,-460.0,0.00019726,2]
[368022132,1750996245875,-460.0,0.00019726,2]
[368022133,1750996245884,-460.0,0.00019726,2]
[368022134,1750996245894,-460.0,0.00019726,2]
[368022135,1750996245906,-602.41,0.00019726,2]
[368022136,1750996245915,-629.94,0.00019726,2]
[368022137,1750996245924,-460.0,0.00019726,2]
[368022138,1750996245934,-460.0,0.00019726,2]
[368022139,1750996245943,-460.0,0.00019726,2]
[368022140,1750996245952,-312.1468531,0.00019726,2]
[368022141,1750996245961,-460.0,0.00019726,2]
[368022142,1750996245970,-460.0,0.00019726,2]
[368022143,1750996245980,-460.0,0.00019726,2]
[368022144,1750996245989,-460.0,0.00019726,2]
[368022145,1750996246001,-460.0,0.00019726,2]
[368022146,1750996246011,-210.66622379,0.00019726,2]
[368022148,1750996246020,-460.0,0.00019726,2]
[368022149,1750996246029,-460.0,0.00019726,2]
[368022150,1750996246039,-460.0,0.00019726,2]
[368022151,1750996246049,-1114.1,0.00019726,2]
[368022152,1750996246058,-460.0,0.00019726,2]
[368022153,1750996246068,-600.98,0.00019726,2]
[368022154,1750996246078,-460.0,0.00019726,2]
[368022155,1750996246088,-467.55003261,0.00019726,2]
[368022156,1750996246097,-460.0,0.00019726,2]
[368022157,1750996246107,-460.0,0.00019726,2]
[368022158,1750996246116,-460.0,0.00019726,2]
[368022159,1750996246125,-335.22868372,0.00019726,2]
[368022160,1750996246135,-460.0,0.00019726,2]
[368022161,1750996246145,-460.0,0.00019726,2]
[368022162,1750996246155,-460.0,0.00019726,2]
[368022163,1750996246165,-460.0,0.00019726,2]
[368022164,1750996246174,-460.0,0.00019726,2]
[368022165,1750996246183,-460.0,0.00019726,2]
[368022166,1750996246197,-460.0,0.00019726,2]
[368022167,1750996246207,-460.0,0.00019726,2]
[368022168,1750996246216,-862.68,0.00019726,2]
[368022169,1750996246225,-460.0,0.00019726,2]
[368022170,1750996246234,-460.0,0.00019726,2]
[368022171,1750996246243,-460.0,0.00019726,2]
[368022172,1750996246253,-460.0,0.00019726,2]
[368022173,1750996246262,-460.0,0.00019726,2]
[368022174,1750996246271,-502.67,0.00019726,2]
[368022175,1750996246281,-450.0,0.00019726,2]
[368022176,1750996246290,-475.94843183,0.00019726,2]
[368022177,1750996246300,-460.0,0.00019726,2]
[368022178,1750996246310,-460.0,0.00019726,2]
[368022179,1750996246319,-460.0,0.00019726,2]
[368022180,1750996246328,-483.06685245,0.00019726,2]
[368022181,1750996246337,-460.0,0.00019726,2]
[368022182,1750996246345,-460.0,0.00019726,2]
[368022183,1750996246355,-460.0,0.00019726,2]
[368022184,1750996246363,-475.38199753,0.00019726,2]
[368022185,1750996246372,-460.0,0.00019726,2]
[368022186,1750996246381,-460.0,0.00019726,2]
[368022187,1750996246390,-460.0,0.00019726,2]
[368022188,1750996246399,-460.0,0.00019726,2]
[368022189,1750996246409,-460.0,0.00019726,2]
[368022190,1750996246418,-460.0,0.00019726,2]
[368022191,1750996246427,-446.29134718,0.00019726,2]
[368022192,1750996246436,-460.0,0.00019726,2]
[368022193,1750996246446,-478.37098556,0.00019726,2]
[368022194,1750996246455,-460.0,0.00019726,2]
[368022195,1750996246464,-460.0,0.00019726,2]
[368022196,1750996246474,-460.0,0.00019726,2]
[368022197,1750996246483,-745.34,0.00019726,2]
[368022198,1750996246493,-832.18,0.00019726,2]
[368022199,1750996246502,-460.0,0.00019726,2]
[368022200,1750996246510,-1599.49,0.00019726,2]
[368022201,1750996246519,-460.0,0.00019726,2]
[368022202,1750996246528,-460.0,0.00019726,2]
[368022204,1750996246537,-460.0,0.00019726,2]
[368022206,1750996246546,-460.0,0.00019726,2]
[368022208,1750996246555,-460.0,0.00019726,2]
[368022210,1750996246566,-460.0,0.00019726,2]
[368022212,1750996246575,-440.0,0.00019726,2]
[368022214,1750996246584,-460.0,0.00019726,2]
[368022216,1750996246593,-416.06914749,0.00019726,2]
[368022218,1750996246603,-460.0,0.00019726,2]
[368022220,1750996246612,-460.0,0.00019726,2]
[368022222,1750996246621,-460.0,0.00019726,2]
[368022224,1750996246631,-460.0,0.00019726,2]
[368022226,1750996246640,-606.6,0.00019726,2]
[368022228,1750996246650,-460.0,0.00019726,2]
[368022229,1750996246659,-460.0,0.00019726,2]
[368022230,1750996246669,-1743.41,0.00019726,2]
[368022231,1750996246678,-460.0,0.00019726,2]
[368022232,1750996246688,-460.0,0.00019726,2]
[368022233,1750996246698,-1732.43,0.00019726,2]
[368022234,1750996246707,-1592.32,0.00019726,2]
[368022235,1750996246717,-429.22124956,0.00019726,2]
[368022236,1750996246726,-571.62,0.00019726,2]
[368022237,1750996246735,-926.69,0.00019726,2]
[368022238,1750996246745,-581.04,0.00019726,2]
[368022239,1750996246755,-460.0,0.00019726,2]
[368022240,1750996246764,-2615.58,0.00019726,2]
[368022241,1750996246884,-460.0,0.00019726,2]
[368022242,1750996246895,-460.0,0.00019726,2]
[368022243,1750996246904,-460.0,0.00019726,2]
[368022244,1750996246914,-460.0,0.00019726,2]
[368022245,1750996246923,-541.92,0.00019726,2]
[368022247,1750996246933,-460.0,0.00019726,2]
[368022248,1750996246942,-460.0,0.00019726,2]
[368022249,1750996246951,-460.0,0.00019726,2]
[368022250,1750996246960,-472.03905629,0.00019726,2]
[368022251,1750996246969,-460.0,0.00019726,2]
[368022252,1750996246978,-460.0,0.00019726,2]
[368022253,1750996246987,-460.0,0.00019726,2]
[368022254,1750996246999,-1580.01,0.00019726,2]
[368022255,1750996247008,-948.51,0.00019726,2]
[368022256,1750996247017,-460.0,0.00019726,2]
[368022257,1750996247026,-151.881535,0.00019726,2]
[368022258,1750996247035,-460.0,0.00019726,2]
[368022259,1750996247047,-460.0,0.00019726,2]
[368022260,1750996247056,-582.06,0.00019726,2]
[368022261,1750996247065,-1243.88,0.00019726,2]
[368022262,1750996247075,-848.57,0.00019726,2]
[368022263,1750996247085,-154.393851,0.00019726,2]
[368022264,1750996247094,-460.0,0.00019726,2]
[368022265,1750996247103,-460.0,0.00019726,2]
[368022266,1750996247112,-460.0,0.00019726,2]
[368022267,1750996247122,-460.0,0.00019726,2]
[368022268,1750996247132,-460.0,0.00019726,2]
[368022269,1750996247141,-460.0,0.00019726,2]
[368022270,1750996247151,-494.07,0.00019726,2]
[368022271,1750996247160,-151.0,0.00019726,2]
[368022272,1750996247170,-564.61,0.00019726,2]
[368022273,1750996247180,-460.0,0.00019726,2]
[368022274,1750996247189,-460.0,0.00019726,2]
[368022275,1750996247198,-160.65994211,0.00019726,2]
[368022276,1750996247207,-344.98897562,0.00019726,2]
[368022277,1750996247218,-460.0,0.00019726,2]
[368022278,1750996247227,-853.37,0.00019726,2]
[368022279,1750996247239,-764.25,0.00019726,2]
[368022280,1750996247248,-460.0,0.00019726,2]
[368022281,1750996247258,-460.0,0.00019726,2]
[368022282,1750996247267,-460.0,0.00019726,2]
[368022283,1750996247276,-460.0,0.00019726,2]
[368022284,1750996247286,-751.98,0.00019726,2]
[368022285,1750996247295,-460.0,0.00019726,2]
[368022286,1750996247304,-2021.67,0.00019726,2]
[368022287,1750996247314,-565.92,0.00019726,2]
[368022288,1750996247323,-2017.54,0.00019726,2]
[368022289,1750996247332,-460.0,0.00019726,2]
[368022290,1750996247342,-555.33,0.00019726,2]
[368022291,1750996247353,-259.18330606,0.00019726,2]
[368022292,1750996247362,-460.0,0.00019726,2]
[368022293,1750996247371,-460.0,0.00019726,2]
[368022294,1750996247380,-460.0,0.00019726,2]
[368022295,1750996247390,-555.65,0.00019726,2]
[368022296,1750996247399,-460.0,0.00019726,2]
[368022297,1750996247408,-460.0,0.00019726,2]
[368022298,1750996247423,-460.0,0.00019726,2]
[368022299,1750996247432,-460.0,0.00019726,2]
[368022300,1750996247444,-460.0,0.00019726,2]
[368022301,1750996247454,-151.0,0.00019726,2]
[368022302,1750996247463,-460.0,0.00019726,2]
[368022303,1750996247472,-460.0,0.00019726,2]
[368022304,1750996247481,-460.0,0.00019726,2]
[368022305,1750996247490,-441.28166404,0.00019726,2]
[368022306,1750996247499,-460.0,0.00019726,2]
[368022307,1750996247508,-2341.34,0.00019726,2]
[368022308,1750996247518,-460.0,0.00019726,2]
[368022309,1750996247527,-460.0,0.00019726,2]
[368022310,1750996247536,-151.598614,0.00019726,2]
[368022311,1750996247546,-151.0,0.00019726,2]
[368022312,1750996247555,-460.0,0.00019726,2]
[368022313,1750996247564,-460.0,0.00019726,2]
[368022314,1750996247574,-771.04,0.00019726,2]
[368022315,1750996247584,-460.0,0.00019726,2]
[368022316,1750996247594,-151.0,0.00019726,2]
[368022317,1750996247603,-460.0,0.00019726,2]
[368022318,1750996247613,-906.39,0.00019726,2]
[368022319,1750996247623,-460.0,0.00019726,2]
[368022320,1750996247632,-151.0,0.00019726,2]
[368022321,1750996247641,-460.0,0.00019726,2]
[368022322,1750996247650,-270.90373731,0.00019726,2]
[368022323,1750996247659,-804.9,0.00019726,2]
[368022324,1750996247668,-151.0,0.00019726,2]
[368022325,1750996247677,-460.0,0.00019726,2]
[368022326,1750996247686,-1327.84,0.00019726,2]
[368022327,1750996247696,-460.0,0.00019726,2]
[368022328,1750996247705,-460.0,0.00019726,2]
[368022329,1750996247715,-460.0,0.00019726,2]
[368022330,1750996247724,-460.0,0.00019726,2]
[368022331,1750996247733,-4263.33,0.00019726,2]
[368022332,1750996247743,-460.0,0.00019726,2]
[368022333,1750996247752,-460.0,0.00019726,2]
[368022334,1750996247762,-460.0,0.00019726,2]
[368022335,1750996247771,-510.20493549,0.00019726,2]
[368022336,1750996247781,-460.0,0.00019726,2]
[368022337,1750996247790,-460.0,0.00019726,2]
[368022338,1750996247799,-2077.85,0.00019726,2]
[368022339,1750996247808,-460.0,0.00019726,2]
[368022340,1750996247817,-460.0,0.00019726,2]
[368022341,1750996247826,-228.18172,0.00019726,2]
[368022342,1750996247835,-460.0,0.00019726,2]
[368022343,1750996247845,-460.0,0.00019726,2]
[368022344,1750996247855,-460.0,0.00019726,2]
[368022345,1750996247866,-874.94,0.00019726,2]
[368022346,1750996247877,-460.0,0.00019726,2]
[368022347,1750996247887,-460.0,0.00019726,2]
[368022348,1750996247897,-689.65,0.00019726,2]
[368022349,1750996247906,-460.0,0.00019726,2]
[368022350,1750996247916,-2347.23,0.00019726,2]
[368022351,1750996247925,-460.0,0.00019726,2]
[368022352,1750996247935,-460.0,0.00019726,2]
[368022353,1750996247944,-151.0,0.00019726,2]
[368022354,1750996247953,-460.0,0.00019726,2]
[368022355,1750996247963,-151.0,0.00019726,2]
[368022356,1750996247972,-271.6535,0.00019726,2]
[368022357,1750996247981,-1651.92851149,0.00019801,2]
[368022358,1750996247990,-6760.62937348,0.000199,2]
[368022359,1750996248002,-150.072,0.0002,7]
[368022360,1750996248012,-460.0,0.0002,2]
[368022361,1750996248022,-460.0,0.0002,2]
[368022362,1750996248031,-460.0,0.0002,2]
[368022363,1750996248042,-460.0,0.0002,2]
[368022364,1750996248051,-430.0,0.0002,2]
[368022365,1750996248060,-472.96471581,0.0002,2]
[368022366,1750996248071,-480.872299,0.0002,2]
[368022367,1750996248081,-557.09271926,0.0002,2]
[368022368,1750996248090,-460.0,0.0002,2]
[368022369,1750996248100,-583.22,0.0002,2]
[368022370,1750996248110,-460.0,0.0002,2]
[368022371,1750996248119,-532.07,0.0002,2]
[368022372,1750996248130,-460.0,0.0002,2]
[368022373,1750996248140,-460.0,0.0002,2]
[368022374,1750996248149,-460.0,0.0002,2]
[368022375,1750996248159,-460.0,0.0002,2]
[368022376,1750996248169,-460.0,0.0002,2]
[368022377,1750996248178,-460.0,0.0002,2]
[368022378,1750996248188,-460.0,0.0002,2]
[368022379,1750996248197,-629.94,0.0002,2]
[368022380,1750996248207,-460.0,0.0002,2]
[368022381,1750996248217,-460.0,0.0002,2]
[368022382,1750996248227,-460.0,0.0002,2]
[368022383,1750996248236,-460.0,0.0002,2]
[368022384,1750996248246,-460.0,0.0002,2]
[368022385,1750996248255,-460.0,0.0002,2]
[368022386,1750996248264,-460.0,0.0002,2]
[368022387,1750996248274,-460.0,0.0002,2]
[368022388,1750996248284,-460.0,0.0002,2]
[368022389,1750996248294,-1114.1,0.0002,2]
[368022390,1750996248304,-460.0,0.0002,2]
[368022391,1750996248313,-460.0,0.0002,2]
[368022392,1750996248323,-460.0,0.0002,2]
[368022393,1750996248333,-460.0,0.0002,2]
[368022394,1750996248342,-460.0,0.0002,2]
[368022395,1750996248352,-460.0,0.0002,2]
[368022396,1750996248361,-460.0,0.0002,2]
[368022397,1750996248370,-460.0,0.0002,2]
[368022398,1750996248379,-862.68,0.0002,2]
[368022399,1750996248389,-460.0,0.0002,2]
[368022400,1750996248398,-460.0,0.0002,2]
[368022401,1750996248407,-460.0,0.0002,2]
[368022402,1750996248418,-460.0,0.0002,2]
[368022403,1750996248427,-502.67,0.0002,2]
[368022404,1750996248436,-460.0,0.0002,2]
[368022405,1750996248446,-460.0,0.0002,2]
[368022406,1750996248456,-460.0,0.0002,2]
[368022407,1750996248465,-460.0,0.0002,2]
[368022408,1750996248475,-460.0,0.0002,2]
[368022409,1750996248484,-540.95113274,0.0002,2]
[368022410,1750996248494,-151.0,0.0002,2]
[368022411,1750996248504,-460.0,0.0002,2]
[368022412,1750996248513,-276.14932496,0.0002,2]
[368022413,1750996248523,-460.0,0.0002,2]
[368022414,1750996248532,-460.0,0.0002,2]
[368022415,1750996248542,-227.79999128,0.0002,2]
[368022416,1750996248552,-745.34,0.0002,2]
[368022417,1750996248561,-832.18,0.0002,2]
[368022418,1750996248571,-411.09944615,0.0002,2]
[368022419,1750996248580,-1599.49,0.0002,2]
[368022420,1750996248590,-322.40624098,0.0002,2]
[368022421,1750996248599,-460.0,0.0002,2]
[368022422,1750996248608,-460.0,0.0002,2]
[368022423,1750996248618,-460.0,0.0002,2]
[368022424,1750996248628,-460.0,0.0002,2]
[368022425,1750996248638,-460.0,0.0002,2]
[368022426,1750996248647,-151.426862,0.0002,2]
[368022427,1750996248657,-204.51363053,0.0002,2]
[368022428,1750996248667,-460.0,0.0002,2]
[368022429,1750996248676,-606.6,0.0002,2]
[368022430,1750996248686,-460.0,0.0002,2]
[368022431,1750996248695,-460.0,0.0002,2]
[368022432,1750996248705,-1743.41,0.0002,2]
[368022433,1750996248714,-460.0,0.0002,2]
[368022434,1750996248724,-460.0,0.0002,2]
[368022435,1750996248734,-1732.43,0.0002,2]
[368022436,1750996248744,-1592.32,0.0002,2]
[368022437,1750996248753,-1490.0,0.0002,5]
[368022438,1750996248763,-926.69,0.0002,2]
[368022439,1750996248772,-581.04,0.0002,2]
[368022440,1750996248782,-460.0,0.0002,2]
[368022441,1750996248792,-2615.58,0.0002,2]
[368022442,1750996248801,-460.0,0.0002,2]
[368022443,1750996248811,-460.0,0.0002,2]
[368022444,1750996248820,-460.0,0.0002,2]
[368022445,1750996248829,-460.0,0.0002,2]
[368022446,1750996248839,-541.92,0.0002,2]
[368022447,1750996248849,-503.51,0.0002,2]
[368022448,1750996248858,-460.0,0.0002,2]
[368022449,1750996248867,-460.0,0.0002,2]
[368022450,1750996248877,-460.0,0.0002,2]
[368022451,1750996248887,-460.0,0.0002,2]
[368022452,1750996248895,-460.0,0.0002,2]
[368022453,1750996248905,-1580.01,0.0002,2]
[368022454,1750996248914,-460.0,0.0002,2]
[368022455,1750996248924,-948.51,0.0002,2]
[368022456,1750996248934,-460.0,0.0002,2]
[368022457,1750996248943,-582.06,0.0002,2]
[368022458,1750996248954,-1243.88,0.0002,2]
[368022459,1750996248964,-151.0,0.0002,2]
[368022460,1750996248973,-848.57,0.0002,2]
[368022461,1750996248982,-151.0,0.0002,2]
[368022462,1750996248993,-460.0,0.0002,2]
[368022463,1750996249006,-460.0,0.0002,2]
[368022464,1750996249017,-460.0,0.0002,2]
[368022465,1750996249026,-460.0,0.0002,2]
[368022466,1750996249037,-460.0,0.0002,2]
[368022467,1750996249047,-494.07,0.0002,2]
[368022468,1750996249055,-564.61,0.0002,2]
[368022469,1750996249065,-480.62471395,0.0002,2]
[368022470,1750996249075,-460.0,0.0002,2]
[368022471,1750996249085,-460.0,0.0002,2]
[368022472,1750996249095,-853.37,0.0002,2]
[368022473,1750996249105,-460.0,0.0002,2]
[368022474,1750996249114,-764.25,0.0002,2]
[368022475,1750996249125,-502.08,0.0002,2]
[368022476,1750996249134,-460.0,0.0002,2]
[368022477,1750996249143,-151.0,0.0002,2]
[368022478,1750996249153,-460.0,0.0002,2]
[368022479,1750996249164,-751.98,0.0002,2]
[368022480,1750996249173,-155.656594,0.0002,2]
[368022481,1750996249183,-460.0,0.0002,2]
[368022482,1750996249192,-2021.67,0.0002,2]
[368022483,1750996249201,-565.92,0.0002,2]
[368022484,1750996249211,-209.714476,0.0002,2]
[368022485,1750996249221,-2017.54,0.0002,2]
[368022486,1750996249231,-460.0,0.0002,2]
[368022487,1750996249240,-209.714476,0.0002,2]
[368022488,1750996249249,-555.33,0.0002,2]
[368022489,1750996249259,-460.0,0.0002,2]
[368022490,1750996249269,-151.0,0.0002,3]
[368022491,1750996249278,-460.0,0.0002,2]
[368022492,1750996249288,-151.0,0.0002,2]
[368022493,1750996249298,-151.0,0.0002,2]
[368022494,1750996249307,-555.65,0.0002,2]
[368022495,1750996249317,-460.0,0.0002,2]
[368022496,1750996249474,-460.0,0.0002,2]
[368022497,1750996249484,-460.0,0.0002,2]
[368022498,1750996249494,-151.0,0.0002,2]
[368022499,1750996249504,-151.0,0.0002,2]
[368022500,1750996249513,-460.0,0.0002,2]
[368022501,1750996249522,-460.0,0.0002,2]
[368022502,1750996249532,-460.0,0.0002,2]
[368022503,1750996249541,-460.0,0.0002,2]
[368022504,1750996249551,-460.0,0.0002,2]
[368022505,1750996249560,-460.0,0.0002,2]
[368022506,1750996249570,-543.97492755,0.0002,2]
[368022507,1750996249578,-2341.34,0.0002,2]
[368022508,1750996249588,-460.0,0.0002,2]
[368022509,1750996249598,-151.0,0.0002,2]
[368022510,1750996249607,-460.0,0.0002,2]
[368022511,1750996249617,-460.0,0.0002,2]
[368022512,1750996249627,-771.04,0.0002,2]
[368022513,1750996249636,-460.0,0.0002,2]
[368022514,1750996249645,-151.0,0.0002,2]
[368022515,1750996249655,-460.0,0.0002,2]
[368022516,1750996249664,-906.39,0.0002,2]
[368022517,1750996249674,-460.0,0.0002,2]
[368022518,1750996249684,-460.0,0.0002,2]
[368022519,1750996249693,-804.9,0.0002,2]
[368022520,1750996249702,-151.0,0.0002,2]
[368022521,1750996249712,-460.0,0.0002,2]
[368022522,1750996249721,-1327.84,0.0002,2]
[368022523,1750996249731,-460.0,0.0002,2]
[368022524,1750996249741,-345.07155169,0.0002,2]
[368022525,1750996249751,-584.4407446,0.0002,2]
[368022526,1750996249760,-460.0,0.0002,2]
[368022527,1750996249769,-4263.33,0.0002,2]
[368022528,1750996249779,-460.0,0.0002,2]
[368022529,1750996249789,-460.0,0.0002,2]
[368022530,1750996249798,-460.0,0.0002,2]
[368022531,1750996249807,-2077.85,0.0002,2]
[368022532,1750996249817,-460.0,0.0002,2]
[368022533,1750996249827,-460.0,0.0002,2]
[368022534,1750996249837,-460.0,0.0002,2]
[368022535,1750996249846,-460.0,0.0002,2]
[368022536,1750996249855,-874.94,0.0002,2]
[368022537,1750996249865,-460.0,0.0002,2]
[368022538,1750996249875,-689.65,0.0002,2]
[368022539,1750996249884,-460.0,0.0002,2]
[368022540,1750996249893,-153.199325,0.0002,2]
[368022541,1750996249902,-2347.23,0.0002,2]
[368022542,1750996249913,-460.0,0.0002,2]
[368022543,1750996249923,-151.0,0.0002,2]
[368022544,1750996249934,-460.0,0.0002,2]
[368022545,1750996249946,-151.0,0.0002,2]
[368022546,1750996249957,-151.0,0.00020008,2]
[368022547,1750996249969,-151.0,0.00020008,2]